bitfinex/quotes_BTCUSD_20251213
["timestamp","ask_amount","ask_price","bid_price","bid_amount"]
[1765598570845,0.23958055,90395.0,90394.0,0.00293446]
[1765598581439,0.25064457,90395.0,90394.0,0.00293446]
[1765598583482,0.25064457,90395.0,90394.0,0.0026633]
[1765598593960,0.25064457,90395.0,90394.0,0.00257215]
[1765598602703,0.29378701,90395.0,90394.0,0.00257215]
[1765598627755,0.25064457,90395.0,90394.0,0.00257215]
[1765598627934,0.29378701,90395.0,90394.0,0.00257215]
[1765598633361,0.29378701,90395.0,90394.0,0.00247846]
[1765598633567,0.25064457,90395.0,90394.0,0.00247846]
[1765598656390,0.29378701,90395.0,90394.0,0.00247846]
[1765598660727,0.30416324,90395.0,90394.0,0.00114616]
[1765598664944,0.30416324,90395.0,90394.0,0.00105222]
[1765598666155,0.2610208,90395.0,90394.0,0.00105222]
[1765598666358,0.30416324,90395.0,90394.0,0.00105222]
[1765598673835,0.3041494,90395.0,90394.0,0.00105222]
[1765598678269,0.64486779,90395.0,90394.0,0.00105222]
[1765598678670,0.66876905,90395.0,90394.0,0.00105222]
[1765598679181,0.66776905,90395.0,90394.0,0.00105222]
[1765598679413,0.64586779,90395.0,90394.0,0.00105222]
[1765598679530,0.64786779,90395.0,90394.0,0.00105222]
[1765598679730,0.75837541,90395.0,90394.0,0.00105222]
[1765598679934,0.78227667,90395.0,90394.0,0.00105222]
[1765598680346,0.99203172,90395.0,90394.0,0.00105222]
[1765598681554,1.03179729,90395.0,90394.0,0.00105222]
[1765598682316,0.92128967,90395.0,90394.0,0.00105222]
[1765598683471,0.8815241,90395.0,90394.0,0.00105222]
[1765598687971,0.87116171,90395.0,90394.0,0.00105222]
[1765598688173,0.88151328,90395.0,90394.0,0.00105222]
[1765598689333,0.92127885,90395.0,90394.0,0.00105222]
[1765598692326,0.95141775,90395.0,90394.0,0.00105222]
[1765598695007,0.92127885,90395.0,90394.0,0.00105222]
[1765598701396,0.88151328,90395.0,90394.0,0.00105222]
[1765598703219,0.87126974,90395.0,90394.0,0.00105222]
[1765598703391,0.54079489,90395.0,90394.0,0.00105222]
[1765598703591,0.51689363,90395.0,90394.0,0.00105222]
[1765598704603,0.51489363,90395.0,90394.0,0.00105222]
[1765598704805,0.51389363,90395.0,90394.0,0.00105222]
[1765598706114,0.51489363,90395.0,90394.0,0.00105222]
[1765598706492,0.51489363,90395.0,90394.0,0.00238452]
[1765598706493,0.30513858,90395.0,90394.0,0.00238452]
[1765598706692,0.29378701,90395.0,90394.0,0.00238452]
[1765598713472,0.29378701,90395.0,90394.0,0.00105222]
[1765598722278,0.29378701,90395.0,90394.0,0.00095927]
[1765598723147,0.25064457,90395.0,90394.0,0.00095927]
[1765598723354,0.29378701,90395.0,90394.0,0.00095927]
[1765598730112,0.30414567,90395.0,90394.0,0.00095927]
[1765598732610,0.30414567,90395.0,90394.0,0.00055394]
[1765598736334,0.26100323,90395.0,90394.0,0.00055394]
[1765598736651,0.30414567,90395.0,90394.0,0.00055394]
[1765598752994,0.35609975,90395.0,90394.0,0.00055394]
[1765598759697,0.32626332,90395.0,90394.0,0.00055394]
[1765598761531,0.3501052,90395.0,90394.0,0.00055394]
[1765598762112,0.32626332,90395.0,90394.0,0.00055394]
[1765598762314,0.3501052,90395.0,90394.0,0.00055394]
[1765598762702,0.32626332,90395.0,90394.0,0.00055394]
[1765598762905,0.3501052,90395.0,90394.0,0.00055394]
[1765598763076,0.32626332,90395.0,90394.0,0.00055394]
[1765598765047,0.37628171,90395.0,90394.0,0.00055394]
[1765598766639,0.52739093,90395.0,90394.0,0.00055394]
[1765598766837,0.40012359,90395.0,90394.0,0.00055394]
[1765598767558,0.69082359,90395.0,90394.0,0.00055394]
[1765598767801,0.68982359,90395.0,90394.0,0.00055394]
[1765598767989,0.69282359,90395.0,90394.0,0.00055394]
[1765598768633,0.69082359,90395.0,90394.0,0.00055394]
[1765598768831,0.69282359,90395.0,90394.0,0.00055394]
[1765598769249,0.69182359,90395.0,90394.0,0.00055394]
[1765598769451,0.6938288,90395.0,90394.0,0.00055394]
[1765598769680,0.90358385,90395.0,90394.0,0.00055394]
[1765598771559,0.95109629,90395.0,90394.0,0.00055394]
[1765598771761,0.6051169,90393.0,90392.0,0.0002383]
[1765598772115,0.63932265,90393.0,90392.0,0.0002383]
[1765598772331,0.61548077,90393.0,90392.0,0.0002383]
[1765598772520,0.64375386,90393.0,90392.0,0.0002383]
[1765598772698,0.61991198,90393.0,90392.0,0.0002383]
[1765598772899,0.64375386,90393.0,90392.0,0.0002383]
[1765598773086,0.62091198,90393.0,90392.0,0.0002383]
[1765598773284,0.64675386,90393.0,90392.0,0.0002383]
[1765598773480,0.62291198,90393.0,90392.0,0.0002383]
[1765598773712,0.64675386,90393.0,90392.0,0.0002383]
[1765598774041,0.64675386,90393.0,90380.0,0.0004]
[1765598774042,0.31444627,90381.0,90380.0,0.0004]
[1765598774205,0.34225014,90381.0,90380.0,0.0004]
[1765598774404,0.84270519,90381.0,90380.0,0.0004]
[1765598774616,0.90081059,90381.0,90380.0,0.0004]
[1765598775149,0.87097864,90381.0,90380.0,0.0004]
[1765598775445,0.89309629,90381.0,90380.0,0.0004]
[1765598776212,0.92291593,90381.0,90380.0,0.0004]
[1765598776771,0.89309629,90381.0,90380.0,0.0004]
[1765598776928,0.89409629,90381.0,90380.0,0.0004]
[1765598778221,0.92389602,90381.0,90380.0,0.0004]
[1765598779702,0.92389602,90381.0,90380.0,0.00075751]
[1765598783318,0.89408455,90381.0,90380.0,0.00075751]
[1765598796270,0.93386048,90381.0,90380.0,0.00075751]
[1765598798161,0.89408455,90381.0,90380.0,0.00075751]
[1765598800476,0.93388525,90381.0,90380.0,0.00075751]
[1765598802164,0.89408455,90381.0,90380.0,0.00075751]
[1765598802832,0.93390027,90381.0,90380.0,0.00075751]
[1765598804247,0.89408455,90381.0,90380.0,0.00075751]
[1765598804631,0.9339155,90381.0,90380.0,0.00075751]
[1765598805060,0.93393627,90381.0,90380.0,0.00075751]
[1765598806467,0.89410532,90381.0,90380.0,0.00075751]
[1765598806665,0.93393576,90381.0,90380.0,0.00075751]
[1765598806872,0.89410532,90381.0,90380.0,0.00075751]
[1765598807082,0.93393568,90381.0,90380.0,0.00075751]
[1765598816561,0.89410532,90381.0,90380.0,0.00075751]
[1765598819736,0.89415239,90381.0,90380.0,0.00075751]
[1765598831063,0.89414774,90381.0,90380.0,0.00075751]
[1765598836233,0.84412935,90381.0,90380.0,0.00075751]
[1765598844780,0.88395114,90381.0,90380.0,0.00075751]
[1765598845209,0.84412935,90381.0,90380.0,0.00075751]
[1765598846353,0.82668935,90381.0,90380.0,0.00075751]
[1765598846558,0.84412935,90381.0,90380.0,0.00075751]
[1765598853242,0.80098691,90381.0,90380.0,0.00075751]
[1765598853457,0.84412935,90381.0,90380.0,0.00075751]
[1765598858728,0.8839527,90381.0,90380.0,0.00075751]
[1765598858958,0.84412935,90381.0,90380.0,0.00075751]
[1765598871107,0.8839527,90381.0,90380.0,0.00075751]
[1765598874765,0.84412935,90381.0,90380.0,0.00075751]
[1765598876649,0.88394559,90381.0,90380.0,0.00075751]
[1765598877406,0.88394485,90381.0,90380.0,0.00075751]
[1765598878879,0.84412935,90381.0,90380.0,0.00075751]
[1765598880997,0.88394726,90381.0,90380.0,0.00075751]
[1765598881745,0.84080482,90381.0,90380.0,0.00075751]
[1765598881957,0.88394726,90381.0,90380.0,0.00075751]
[1765598883341,0.84412935,90381.0,90380.0,0.00075751]
[1765598883546,0.84405635,90381.0,90380.0,0.00075751]
[1765598884131,0.88387563,90381.0,90380.0,0.00075751]
[1765598888395,0.84405635,90381.0,90380.0,0.00075751]
[1765598889057,0.88388049,90381.0,90380.0,0.00075751]
[1765598890330,0.84405635,90381.0,90380.0,0.00075751]
[1765598899362,0.88388505,90381.0,90380.0,0.00075751]
[1765598902228,0.88388505,90381.0,90380.0,0.0006655]
[1765598921346,0.88388893,90381.0,90380.0,0.0006655]
[1765598943266,0.55336023,90381.0,90380.0,0.0006655]
[1765598943427,0.48632884,90381.0,90380.0,0.0006655]
[1765598943629,0.46888884,90381.0,90380.0,0.0006655]
[1765598944020,0.52947128,90381.0,90380.0,0.0006655]
[1765598947462,0.52942285,90381.0,90380.0,0.0006655]
[1765598961893,0.52942213,90381.0,90380.0,0.0006655]
[1765598977298,0.55926446,90381.0,90380.0,0.0006655]
[1765598982768,0.55929732,90381.0,90380.0,0.0006655]
[1765598987180,0.52942213,90381.0,90380.0,0.0006655]
[1765598999141,0.55929674,90381.0,90380.0,0.0006655]
[1765599004455,0.52942213,90381.0,90380.0,0.0006655]
[1765599005088,0.55930151,90381.0,90380.0,0.0006655]
[1765599008378,0.52942213,90381.0,90380.0,0.0006655]
[1765599008743,0.55930021,90381.0,90380.0,0.0006655]
[1765599008949,0.52942213,90381.0,90380.0,0.0006655]
[1765599009573,0.52943337,90381.0,90380.0,0.0006655]
[1765599020253,0.55931147,90381.0,90380.0,0.0006655]
[1765599034454,0.51616903,90381.0,90380.0,0.0006655]
[1765599035532,0.55931147,90381.0,90380.0,0.0006655]
[1765599035859,0.54187147,90381.0,90380.0,0.0006655]
[1765599036086,0.55931147,90381.0,90380.0,0.0006655]
[1765599038020,0.51616903,90381.0,90380.0,0.0006655]
[1765599038592,0.49872903,90381.0,90380.0,0.0006655]
[1765599038815,0.55931147,90381.0,90380.0,0.0006655]
[1765599040704,0.51616903,90381.0,90380.0,0.0006655]
[1765599041834,0.55931147,90381.0,90380.0,0.0006655]
[1765599042939,0.55931063,90381.0,90380.0,0.0006655]
[1765599060196,0.5593093,90381.0,90380.0,0.0006655]
[1765599061171,0.52943204,90381.0,90380.0,0.0006655]
[1765599111473,0.5593093,90381.0,90380.0,0.0006655]
[1765599112140,0.55936486,90381.0,90380.0,0.0006655]
[1765599112416,0.48634516,90381.0,90380.0,0.0006655]
[1765599112597,0.55338941,90381.0,90380.0,0.0006655]
[1765599112794,0.5294876,90381.0,90380.0,0.0006655]
[1765599113015,0.55338941,90381.0,90380.0,0.0006655]
[1765599113326,0.5294876,90381.0,90380.0,0.0006655]
[1765599113496,0.55338941,90381.0,90380.0,0.0006655]
[1765599113683,0.5294876,90381.0,90380.0,0.0006655]
[1765599113885,0.55338941,90381.0,90380.0,0.0006655]
[1765599114103,0.5294876,90381.0,90380.0,0.0006655]
[1765599133011,0.5294821,90381.0,90380.0,0.0006655]
[1765599138334,0.55338391,90381.0,90380.0,0.0006655]
[1765599138536,0.5294821,90381.0,90380.0,0.0006655]
[1765599138737,0.55338391,90381.0,90380.0,0.0006655]
[1765599138955,0.5294821,90381.0,90380.0,0.0006655]
[1765599139160,0.55338391,90381.0,90380.0,0.0006655]
[1765599139368,0.5294821,90381.0,90380.0,0.0006655]
[1765599139559,0.55338391,90381.0,90380.0,0.0006655]
[1765599139733,0.5294821,90381.0,90380.0,0.0006655]
[1765599139949,0.55338391,90381.0,90380.0,0.0006655]
[1765599140269,0.5294821,90381.0,90380.0,0.0006655]
[1765599140470,0.55338391,90381.0,90380.0,0.0006655]
[1765599140813,0.5294821,90381.0,90380.0,0.0006655]
[1765599141009,0.55338391,90381.0,90380.0,0.0006655]
[1765599141212,0.5294821,90381.0,90380.0,0.0006655]
[1765599141355,0.55338391,90381.0,90380.0,0.0006655]
[1765599169053,0.55338982,90381.0,90380.0,0.0006655]
[1765599188251,0.52948801,90381.0,90380.0,0.0006655]
[1765599188435,0.55338982,90381.0,90380.0,0.0006655]
[1765599188631,0.52948801,90381.0,90380.0,0.0006655]
[1765599188849,0.55338982,90381.0,90380.0,0.0006655]
[1765599189052,0.52948801,90381.0,90380.0,0.0006655]
[1765599189306,0.55338982,90381.0,90380.0,0.0006655]
[1765599189453,0.52948801,90381.0,90380.0,0.0006655]
[1765599189811,0.55338982,90381.0,90380.0,0.0006655]
[1765599189956,0.52948801,90381.0,90380.0,0.0006655]
[1765599190151,0.55338982,90381.0,90380.0,0.0006655]
[1765599190363,0.52948801,90381.0,90380.0,0.0006655]
[1765599190616,0.55338982,90381.0,90380.0,0.0006655]
[1765599190895,0.52948801,90381.0,90380.0,0.0006655]
[1765599191195,0.55338982,90381.0,90380.0,0.0006655]
[1765599191431,0.52948801,90381.0,90380.0,0.0006655]
[1765599191645,0.55338982,90381.0,90380.0,0.0006655]
[1765599191813,0.52948801,90381.0,90380.0,0.0006655]
[1765599192015,0.55338982,90381.0,90380.0,0.0006655]
[1765599192222,0.52948801,90381.0,90380.0,0.0006655]
[1765599192543,0.55338982,90381.0,90380.0,0.0006655]
[1765599192790,0.52948801,90381.0,90380.0,0.0006655]
[1765599192957,0.55338982,90381.0,90380.0,0.0006655]
[1765599193172,0.52948801,90381.0,90380.0,0.0006655]
[1765599193373,0.55338982,90381.0,90380.0,0.0006655]
[1765599193522,0.52948801,90381.0,90380.0,0.0006655]
[1765599193746,0.55338982,90381.0,90380.0,0.0006655]
[1765599193942,0.52948801,90381.0,90380.0,0.0006655]
[1765599194145,0.55338982,90381.0,90380.0,0.0006655]
[1765599194346,0.52948801,90381.0,90380.0,0.0006655]
[1765599194543,0.55338982,90381.0,90380.0,0.0006655]
[1765599194770,0.52948801,90381.0,90380.0,0.0006655]
[1765599194947,0.55338982,90381.0,90380.0,0.0006655]
[1765599195148,0.52948801,90381.0,90380.0,0.0006655]
[1765599195355,0.55338982,90381.0,90380.0,0.0006655]
[1765599195550,0.52948801,90381.0,90380.0,0.0006655]
[1765599195731,0.55338982,90381.0,90380.0,0.0006655]
[1765599195927,0.52948801,90381.0,90380.0,0.0006655]
[1765599196212,0.55338982,90381.0,90380.0,0.0006655]
[1765599196347,0.52948801,90381.0,90380.0,0.0006655]
[1765599196556,0.55338982,90381.0,90380.0,0.0006655]
[1765599196771,0.52948801,90381.0,90380.0,0.0006655]
[1765599196930,0.55338982,90381.0,90380.0,0.0006655]
[1765599197132,0.52948801,90381.0,90380.0,0.0006655]
[1765599197369,0.55338982,90381.0,90380.0,0.0006655]
[1765599197582,0.52948801,90381.0,90380.0,0.0006655]
[1765599197883,0.55338982,90381.0,90380.0,0.0006655]
[1765599198060,0.52948801,90381.0,90380.0,0.0006655]
[1765599198244,0.55338982,90381.0,90380.0,0.0006655]
[1765599198429,0.52948801,90381.0,90380.0,0.0006655]
[1765599198632,0.55338982,90381.0,90380.0,0.0006655]
[1765599198890,0.52948801,90381.0,90380.0,0.0006655]
[1765599199092,0.55338982,90381.0,90380.0,0.0006655]
[1765599199371,0.52948801,90381.0,90380.0,0.0006655]
[1765599199509,0.55338982,90381.0,90380.0,0.0006655]
[1765599199704,0.52948801,90381.0,90380.0,0.0006655]
[1765599199944,0.55338982,90381.0,90380.0,0.0006655]
[1765599200161,0.52948801,90381.0,90380.0,0.0006655]
[1765599200387,0.55338982,90381.0,90380.0,0.0006655]
[1765599200587,0.52948801,90381.0,90380.0,0.0006655]
[1765599200789,0.55338982,90381.0,90380.0,0.0006655]
[1765599201015,0.52948801,90381.0,90380.0,0.0006655]
[1765599201151,0.55338982,90381.0,90380.0,0.0006655]
[1765599201486,0.52948801,90381.0,90380.0,0.0006655]
[1765599201721,0.55338982,90381.0,90380.0,0.0006655]
[1765599201972,0.48634557,90381.0,90380.0,0.0006655]
[1765599202141,0.51024738,90381.0,90380.0,0.0006655]
[1765599202315,0.52948801,90381.0,90380.0,0.0006655]
[1765599202481,0.55338982,90381.0,90380.0,0.0006655]
[1765599202682,0.52948801,90381.0,90380.0,0.0006655]
[1765599202959,0.55338982,90381.0,90380.0,0.0006655]
[1765599203116,0.52948801,90381.0,90380.0,0.0006655]
[1765599203431,0.55338982,90381.0,90380.0,0.0006655]
[1765599203632,0.52948801,90381.0,90380.0,0.0006655]
[1765599203852,0.55338982,90381.0,90380.0,0.0006655]
[1765599204057,0.52948801,90381.0,90380.0,0.0006655]
[1765599205020,0.55338982,90381.0,90380.0,0.0006655]
[1765599205251,0.52948801,90381.0,90380.0,0.0006655]
[1765599205463,0.55338982,90381.0,90380.0,0.0006655]
[1765599205640,0.52948801,90381.0,90380.0,0.0006655]
[1765599205800,0.55338982,90381.0,90380.0,0.0006655]
[1765599206000,0.52948801,90381.0,90380.0,0.0006655]
[1765599206269,0.55338982,90381.0,90380.0,0.0006655]
[1765599206386,0.52948801,90381.0,90380.0,0.0006655]
[1765599206584,0.55338982,90381.0,90380.0,0.0006655]
[1765599206787,0.52948801,90381.0,90380.0,0.0006655]
[1765599206991,0.55338982,90381.0,90380.0,0.0006655]
[1765599207197,0.52948801,90381.0,90380.0,0.0006655]
[1765599207418,0.55338982,90381.0,90380.0,0.0006655]
[1765599207626,0.52948801,90381.0,90380.0,0.0006655]
[1765599207838,0.55338982,90381.0,90380.0,0.0006655]
[1765599208067,0.52948801,90381.0,90380.0,0.0006655]
[1765599208267,0.55338982,90381.0,90380.0,0.0006655]
[1765599208461,0.52948801,90381.0,90380.0,0.0006655]
[1765599208683,0.55338982,90381.0,90380.0,0.0006655]
[1765599208896,0.52948801,90381.0,90380.0,0.0006655]
[1765599209088,0.55338982,90381.0,90380.0,0.0006655]
[1765599209264,0.52948801,90381.0,90380.0,0.0006655]
[1765599209463,0.55338982,90381.0,90380.0,0.0006655]
[1765599215814,0.52948801,90381.0,90380.0,0.0006655]
[1765599249908,0.52948659,90381.0,90380.0,0.0006655]
[1765599258551,0.48634415,90381.0,90380.0,0.0006655]
[1765599259508,0.52948659,90381.0,90380.0,0.0006655]
[1765599259708,0.48634415,90381.0,90380.0,0.00030799]
[1765599259910,0.52948659,90381.0,90380.0,0.00030799]
[1765599265010,0.52948659,90381.0,90380.0,0.0006655]
[1765599273261,0.55935801,90381.0,90380.0,0.0006655]
[1765599273420,0.52948659,90381.0,90380.0,0.0006655]
[1765599274000,0.55935791,90381.0,90380.0,0.0006655]
[1765599275064,0.52948659,90381.0,90380.0,0.0006655]
[1765599277628,0.55935786,90381.0,90380.0,0.0006655]
[1765599277858,0.52948659,90381.0,90380.0,0.0006655]
[1765599278344,0.5593581,90381.0,90380.0,0.0006655]
[1765599287279,0.52948659,90381.0,90380.0,0.0006655]
[1765599325791,0.52948868,90381.0,90380.0,0.0006655]
[1765599329195,0.51204868,90381.0,90380.0,0.0006655]
[1765599329421,0.52948868,90381.0,90380.0,0.0006655]
[1765599352907,0.52948913,90381.0,90380.0,0.0006655]
[1765599358247,0.55339094,90381.0,90380.0,0.0006655]
[1765599358380,0.52948913,90381.0,90380.0,0.0006655]
[1765599358587,0.55339094,90381.0,90380.0,0.0006655]
[1765599358828,0.52948913,90381.0,90380.0,0.0006655]
[1765599397539,0.55936421,90381.0,90380.0,0.0006655]
[1765599402001,0.55936421,90381.0,90380.0,1e-08]
[1765599402002,0.89410933,90381.0,90380.0,1e-08]
[1765599402199,0.93393803,90381.0,90380.0,1e-08]
[1765599402404,0.93393224,90381.0,90380.0,1e-08]
[1765599402771,0.89410933,90381.0,90380.0,1e-08]
[1765599405447,0.93391801,90381.0,90380.0,1e-08]
[1765599407300,0.89410933,90381.0,90380.0,1e-08]
[1765599407464,0.93391299,90381.0,90380.0,1e-08]
[1765599408767,0.93390374,90381.0,90380.0,1e-08]
[1765599410289,0.93290374,90381.0,90380.0,1e-08]
[1765599410498,0.93390374,90381.0,90380.0,1e-08]
[1765599420690,0.93390374,90381.0,90380.0,0.00200001]
[1765599426812,0.89410008,90381.0,90380.0,0.00200001]
[1765599428379,0.93390374,90381.0,90380.0,0.00200001]
[1765599428591,0.89410008,90381.0,90380.0,0.00200001]
[1765599430561,0.9339194,90381.0,90380.0,0.00200001]
[1765599430764,0.89410008,90381.0,90380.0,0.00200001]
[1765599446223,0.93391692,90381.0,90380.0,0.00200001]
[1765599449859,0.89410008,90381.0,90380.0,0.00200001]
[1765599452124,0.93392264,90381.0,90380.0,0.00200001]
[1765599452529,0.89410008,90381.0,90380.0,0.00200001]
[1765599452764,0.93392117,90381.0,90380.0,0.00200001]
[1765599453568,0.89410008,90381.0,90380.0,0.00200001]
[1765599458205,0.9339276,90381.0,90380.0,0.00200001]
[1765599459283,0.89410008,90381.0,90380.0,0.00200001]
[1765599480562,0.8941068,90381.0,90380.0,0.00200001]
[1765599488641,0.84408841,90381.0,90380.0,0.00200001]
[1765599503425,0.84408503,90381.0,90380.0,0.00200001]
[1765599512680,0.89410342,90381.0,90380.0,0.00200001]
[1765599513867,0.93393158,90381.0,90380.0,0.00200001]
[1765599527469,0.89078914,90381.0,90380.0,0.00200001]
[1765599527657,0.93393158,90381.0,90380.0,0.00200001]
[1765599529561,0.89410342,90381.0,90380.0,0.00200001]
[1765599534215,0.85096098,90381.0,90380.0,0.00200001]
[1765599534442,0.89410342,90381.0,90380.0,0.00200001]
[1765599534819,0.9339136,90381.0,90380.0,0.00200001]
[1765599536372,0.89410342,90381.0,90380.0,0.00200001]
[1765599536560,0.85096098,90381.0,90380.0,0.00200001]
[1765599536726,0.89410342,90381.0,90380.0,0.00200001]
[1765599543092,0.93392075,90381.0,90380.0,0.00200001]
[1765599543303,0.89410342,90381.0,90380.0,0.00200001]
[1765599543622,0.93392075,90381.0,90380.0,0.00200001]
[1765599547782,0.89410342,90381.0,90380.0,0.00200001]
[1765599551275,0.93392075,90381.0,90380.0,0.00200001]
[1765599553311,0.89410342,90381.0,90380.0,0.00200001]
[1765599553525,0.93392075,90381.0,90380.0,0.00200001]
[1765599553739,0.89410342,90381.0,90380.0,0.00200001]
[1765599553943,0.93392075,90381.0,90380.0,0.00200001]
[1765599554793,0.89410342,90381.0,90380.0,0.00200001]
[1765599557792,0.89410517,90381.0,90380.0,0.00200001]
[1765599560315,0.93392598,90381.0,90380.0,0.00200001]
[1765599563361,0.89410517,90381.0,90380.0,0.00200001]
[1765599571917,0.87020336,90381.0,90380.0,0.00200001]
[1765599572126,0.89409738,90381.0,90380.0,0.00200001]
[1765599578280,0.93391819,90381.0,90380.0,0.00200001]
[1765599578661,0.89409738,90381.0,90380.0,0.00200001]
[1765599578906,0.93391819,90381.0,90380.0,0.00200001]
[1765599579416,0.93391819,90381.0,90380.0,0.00190983]
[1765599586309,0.93391893,90381.0,90380.0,0.00190983]
[1765599593092,0.93391977,90381.0,90380.0,0.00190983]
[1765599595928,0.93187555,90381.0,90380.0,0.00190983]
[1765599601509,0.88873311,90381.0,90380.0,0.00190983]
[1765599601762,0.22133442,90361.0,90360.0,1e-08]
[1765599601983,0.71662614,90361.0,90360.0,1e-08]
[1765599602197,1.97716379,90361.0,90360.0,1e-08]
[1765599602400,2.04121077,90361.0,90360.0,1e-08]
[1765599602541,1.9815969,90361.0,90360.0,1e-08]
[1765599602959,1.9535334,90361.0,90360.0,1e-08]
[1765599604188,1.87108928,90361.0,90360.0,0.00100001]
[1765599604403,1.87108928,90361.0,90360.0,1e-08]
[1765599604602,1.87408928,90361.0,90360.0,1e-08]
[1765599604797,1.87508928,90361.0,90360.0,1e-08]
[1765599605361,1.86498928,90361.0,90360.0,1e-08]
[1765599605600,1.86526985,90361.0,90360.0,1e-08]
[1765599605800,1.17447747,90361.0,90360.0,1e-08]
[1765599605984,0.87536985,90361.0,90360.0,1e-08]
[1765599606983,0.95845326,90361.0,90360.0,1e-08]
[1765599607620,0.95845326,90361.0,90360.0,0.00059603]
[1765599620297,0.95839583,90361.0,90360.0,0.00059603]
[1765599620437,1.03390602,90361.0,90360.0,0.00059603]
[1765599621555,0.95839583,90361.0,90360.0,0.00059603]
[1765599622695,0.82529403,90361.0,90360.0,0.00059603]
[1765599622901,0.80785403,90361.0,90360.0,0.00059603]
[1765599623111,0.87531242,90361.0,90360.0,0.00059603]
[1765599623602,0.87131242,90361.0,90360.0,0.00059603]
[1765599624209,0.87331242,90361.0,90360.0,0.00059603]
[1765599626427,0.45496258,90361.0,90360.0,0.00059603]
[1765599628123,0.45496258,90361.0,90360.0,0.00159603]
[1765599628691,0.45296258,90361.0,90360.0,0.00159603]
[1765599628894,0.45396258,90361.0,90360.0,0.00159603]
[1765599631322,0.46430736,90361.0,90360.0,0.00159603]
[1765599632229,0.45396258,90361.0,90360.0,0.00159603]
[1765599637717,0.45249621,90361.0,90360.0,0.00159603]
[1765599641421,0.45249621,90361.0,90360.0,0.00292833]
[1765599641617,0.23830805,90361.0,90360.0,0.00292833]
[1765599674135,0.29209933,90361.0,90360.0,0.00159603]
[1765599674506,0.3142362,90361.0,90360.0,0.00159603]
[1765599688060,0.31422233,90361.0,90360.0,0.00159603]
[1765599697726,0.31422464,90361.0,90360.0,0.00159603]
[1765599699097,0.57399808,90361.0,90360.0,1e-08]
[1765599699294,0.86469808,90361.0,90360.0,1e-08]
[1765599699517,0.88858627,90361.0,90360.0,1e-08]
[1765599699722,0.97147042,90361.0,90360.0,1e-08]
[1765599699917,0.26450136,90351.0,90350.0,0.0004]
[1765599700124,0.32961591,90351.0,90350.0,0.0004]
[1765599700346,0.32961591,90351.0,90350.0,0.00069808]
[1765599700543,0.33404881,90351.0,90350.0,0.00069808]
[1765599701063,0.33513425,90351.0,90350.0,0.00069808]
[1765599701616,0.33513425,90351.0,90350.0,0.00169808]
[1765599705102,0.5448893,90351.0,90350.0,0.00169808]
[1765599720962,0.50174686,90351.0,90350.0,0.00169808]
[1765599721087,0.50174686,90351.0,90350.0,0.00303038]
[1765599721731,0.49139015,90351.0,90350.0,0.00303038]
[1765599728028,0.48695725,90351.0,90350.0,0.00303038]
[1765599789473,0.5090973,90351.0,90350.0,0.00303038]
[1765599803860,0.28190225,90351.0,90350.0,0.00303038]
[1765599820553,0.2597622,90351.0,90350.0,0.00303038]
[1765599821236,0.2597622,90351.0,90350.0,0.03626693]
[1765599821450,0.2597622,90351.0,90350.0,0.03526693]
[1765599821652,0.2587622,90351.0,90350.0,0.03526693]
[1765599822003,0.03740328,90351.0,90350.0,0.03926693]
[1765599822211,8.544e-05,90351.0,90350.0,0.06140306]
[1765599822379,8.544e-05,90351.0,90350.0,0.03926693]
[1765599822781,8.544e-05,90351.0,90350.0,0.06140306]
[1765599826710,8.544e-05,90351.0,90350.0,0.03926693]
[1765599827876,8.544e-05,90351.0,90350.0,0.06140306]
[1765599843431,8.544e-05,90351.0,90350.0,0.03926693]
[1765599843855,8.544e-05,90351.0,90350.0,0.08245493]
[1765599844960,8.544e-05,90351.0,90350.0,0.3038163]
[1765599845163,8.544e-05,90351.0,90350.0,0.08245493]
[1765599845433,8.544e-05,90351.0,90350.0,0.3038163]
[1765599845766,8.544e-05,90351.0,90350.0,0.08245493]
[1765599849030,8.544e-05,90351.0,90350.0,0.04921838]
[1765599850870,8.544e-05,90351.0,90350.0,0.00603038]
[1765599853328,0.22144436,90351.0,90350.0,0.00603038]
[1765599853523,8.544e-05,90351.0,90350.0,0.00603038]
[1765599909565,8.544e-05,90351.0,90350.0,0.03926568]
[1765599912098,8.544e-05,90351.0,90350.0,0.08245368]
[1765599912299,8.544e-05,90351.0,90350.0,0.39528981]
[1765599912449,8.544e-05,90351.0,90350.0,0.37315368]
[1765599913771,8.544e-05,90351.0,90350.0,0.39059368]
[1765599914831,8.544e-05,90351.0,90350.0,0.38659368]
[1765599915194,8.544e-05,90351.0,90350.0,0.38959368]
[1765599915980,8.544e-05,90351.0,90350.0,0.39159368]
[1765599932018,0.23239273,90365.0,90350.0,0.39159368]
[1765599932019,0.01106304,90391.0,90374.0,0.22130258]
[1765599932169,0.01106304,90391.0,90383.0,0.043188]
[1765599932170,0.01106353,90387.0,90383.0,0.043188]
[1765599932498,0.01114861,90391.0,90389.0,0.043188]
[1765599932669,0.01106317,90390.0,90389.0,0.043188]
[1765599933212,0.01106317,90390.0,90389.0,0.07640895]
[1765599933959,0.01106317,90390.0,90389.0,0.03422095]
[1765599939340,0.03318082,90390.0,90389.0,0.03422095]
[1765599943274,0.03318082,90390.0,90389.0,0.03322095]
[1765599943655,0.03318082,90390.0,90389.0,0.03422095]
[1765599956309,0.01106317,90390.0,90389.0,0.03422095]
[1765599963019,0.01114861,90391.0,90389.0,0.03555325]
[1765599963231,8.557e-05,90391.0,90389.0,0.03555325]
[1765599963461,0.22134876,90391.0,90389.0,0.0023323]
[1765599963684,8.557e-05,90391.0,90390.0,0.03322095]
[1765599963881,8.557e-05,90391.0,90390.0,0.03455325]
[1765599964944,8.557e-05,90391.0,90390.0,0.03555325]
[1765599969134,8.557e-05,90391.0,90390.0,0.0023323]
[1765599974315,0.22134653,90391.0,90390.0,0.0023323]
[1765600010703,0.22134653,90391.0,90390.0,0.0455203]
[1765600011121,0.22134653,90391.0,90390.0,0.0023323]
[1765600019814,8.557e-05,90391.0,90390.0,0.0023323]
[1765600020123,0.22134653,90391.0,90390.0,0.0023323]
[1765600030601,0.22134653,90391.0,90390.0,0.01339608]
[1765600074270,8.557e-05,90391.0,90390.0,0.01339608]
[1765600074470,8.557e-05,90391.0,90390.0,0.07871042]
[1765600075782,8.557e-05,90391.0,90390.0,0.05658408]
[1765600076342,8.557e-05,90391.0,90390.0,0.61494422]
[1765600076551,8.557e-05,90391.0,90390.0,0.58598749]
[1765600077363,8.557e-05,90391.0,90390.0,0.58698749]
[1765600077966,8.557e-05,90391.0,90390.0,0.58598749]
[1765600078342,8.557e-05,90391.0,90390.0,0.54279949]
[1765600078554,8.557e-05,90391.0,90390.0,0.60232494]
[1765600078768,8.557e-05,90391.0,90390.0,0.60332494]
[1765600079228,8.557e-05,90391.0,90390.0,0.54269694]
[1765600079452,8.557e-05,90391.0,90390.0,0.60332494]
[1765600080536,8.557e-05,90391.0,90390.0,0.33887353]
[1765600081130,8.557e-05,90391.0,90390.0,0.38206153]
[1765600081510,8.557e-05,90391.0,90390.0,0.38106153]
[1765600081722,8.557e-05,90391.0,90390.0,0.30309608]
[1765600081900,8.557e-05,90391.0,90390.0,0.30509608]
[1765600082695,8.557e-05,90391.0,90390.0,0.34728408]
[1765600082934,8.557e-05,90391.0,90390.0,0.34628408]